fUSD/lending_fUSD_20260622
["ID","MTS","AMOUNT","RATE_DAILY","PERIOD"]
[426024973,1782119492000,-500.0,0.00027945,2]
[426024978,1782119492000,-526.09,0.00027945,2]
[426024975,1782119492000,-500.0,0.00027945,2]
[426024974,1782119492000,-500.0,0.00027945,2]
[426024982,1782119492000,-879.31,0.00027945,2]
[426024971,1782119492000,-425.322167,0.00027945,7]
[426024983,1782119492000,-523.99,0.00027945,2]
[426024979,1782119492000,-500.0,0.00027945,2]
[426025054,1782119493000,-637.55,0.00027945,2]
[426025053,1782119493000,-523.88,0.00027945,2]
[426025047,1782119493000,-500.0,0.00027945,2]
[426025044,1782119493000,-500.0,0.00027945,2]
[426025043,1782119493000,-500.0,0.00027945,2]
[426025049,1782119493000,-621.6586357,0.00027945,2]
[426025052,1782119493000,-599.37,0.00027945,2]
[426025051,1782119493000,-500.0,0.00027945,2]
[426025048,1782119493000,-500.0,0.00027945,2]
[426025045,1782119493000,-803.96,0.00027945,2]
[426025050,1782119493000,-500.0,0.00027945,2]
[426025055,1782119493000,-506.78892674,0.00027945,2]
[426025061,1782119493000,-500.0,0.00027945,2]
[426025057,1782119493000,-500.0,0.00027945,2]
[426025056,1782119493000,-256.249454,0.00027945,2]
[426025058,1782119493000,-500.0,0.00027945,2]
[426025059,1782119493000,-823.1,0.00027945,2]
[426025062,1782119493000,-500.0,0.00027945,2]
[426025065,1782119493000,-500.0,0.00027945,2]
[426025063,1782119493000,-414.5768332,0.00027945,2]
[426025066,1782119493000,-500.0,0.00027945,2]
[426025067,1782119493000,-377.71843908,0.00027945,2]
[426025064,1782119493000,-500.0,0.00027945,2]
[426025073,1782119493000,-751.33,0.00027945,2]
[426025046,1782119493000,-763.71,0.00027945,2]
[426025060,1782119493000,-500.0,0.00027945,2]
[426025039,1782119493000,-500.0,0.00027945,2]
[426025026,1782119493000,-536.97,0.00027945,2]
[426025037,1782119493000,-500.0,0.00027945,2]
[426025072,1782119493000,-500.0,0.00027945,2]
[426025015,1782119493000,-541.25,0.00027945,2]
[426025016,1782119493000,-500.0,0.00027945,2]
[426025017,1782119493000,-500.0,0.00027945,2]
[426025019,1782119493000,-202.23674136,0.00027945,2]
[426025020,1782119493000,-500.0,0.00027945,2]
[426025024,1782119493000,-500.0,0.00027945,2]
[426025027,1782119493000,-500.0,0.00027945,2]
[426025022,1782119493000,-500.0,0.00027945,2]
[426025021,1782119493000,-500.0,0.00027945,2]
[426025028,1782119493000,-500.0,0.00027945,2]
[426025018,1782119493000,-500.0,0.00027945,2]
[426025023,1782119493000,-500.0,0.00027945,2]
[426025025,1782119493000,-500.0,0.00027945,2]
[426025030,1782119493000,-535.38,0.00027945,2]
[426025040,1782119493000,-500.0,0.00027945,2]
[426025042,1782119493000,-500.0,0.00027945,2]
[426025041,1782119493000,-500.0,0.00027945,2]
[426025032,1782119493000,-500.0,0.00027945,2]
[426025029,1782119493000,-500.0,0.00027945,2]
[426025031,1782119493000,-500.0,0.00027945,2]
[426025035,1782119493000,-500.0,0.00027945,2]
[426025036,1782119493000,-500.0,0.00027945,2]
[426025034,1782119493000,-897.75,0.00027945,2]
[426025033,1782119493000,-545.25672108,0.00027945,2]
[426025038,1782119493000,-500.0,0.00027945,2]
[426025070,1782119493000,-671.19,0.00027945,2]
[426025112,1782119493000,-500.0,0.00027945,2]
[426025071,1782119493000,-500.0,0.00027945,2]
[426025100,1782119493000,-455.78192218,0.00027945,2]
[426025099,1782119493000,-151.809928,0.00027945,2]
[426025105,1782119493000,-515.77497551,0.00027945,2]
[426025106,1782119493000,-631.36,0.00027945,2]
[426025101,1782119493000,-500.0,0.00027945,2]
[426025107,1782119493000,-500.0,0.00027945,2]
[426025109,1782119493000,-901.57,0.00027945,2]
[426025108,1782119493000,-538.73,0.00027945,2]
[426025110,1782119493000,-500.0,0.00027945,2]
[426025119,1782119493000,-500.0,0.00027945,2]
[426025116,1782119493000,-500.0,0.00027945,2]
[426025117,1782119493000,-500.0,0.00027945,2]
[426025122,1782119493000,-500.0,0.00027945,2]
[426025113,1782119493000,-500.0,0.00027945,2]
[426025115,1782119493000,-576.18,0.00027945,2]
[426025114,1782119493000,-838.97,0.00027945,2]
[426025118,1782119493000,-500.0,0.00027945,2]
[426025111,1782119493000,-500.0,0.00027945,2]
[426025120,1782119493000,-500.0,0.00027945,2]
[426025126,1782119493000,-951.64,0.00027945,2]
[426025127,1782119493000,-739.86,0.00027945,2]
[426025123,1782119493000,-500.0,0.00027945,2]
[426025124,1782119493000,-542.93,0.00027945,2]
[426025125,1782119493000,-500.0,0.00027945,2]
[426025068,1782119493000,-585.59,0.00027945,2]
[426025104,1782119493000,-500.0,0.00027945,2]
[426025103,1782119493000,-500.0,0.00027945,2]
[426025121,1782119493000,-500.0,0.00027945,2]
[426025097,1782119493000,-723.93,0.00027945,2]
[426025102,1782119493000,-503.06765504,0.00027945,2]
[426025069,1782119493000,-515.57111979,0.00027945,2]
[426025083,1782119493000,-500.0,0.00027945,2]
[426025074,1782119493000,-1462.67,0.00027945,2]
[426025084,1782119493000,-503.25543623,0.00027945,2]
[426025076,1782119493000,-39661.016941,0.00027945,2]
[426025078,1782119493000,-806.07,0.00027945,2]
[426025082,1782119493000,-500.0,0.00027945,2]
[426025077,1782119493000,-500.0,0.00027945,2]
[426025080,1782119493000,-4107.37,0.00027945,2]
[426025079,1782119493000,-500.0,0.00027945,2]
[426025081,1782119493000,-636.06,0.00027945,2]
[426025075,1782119493000,-500.0,0.00027945,2]
[426025085,1782119493000,-500.0,0.00027945,2]
[426025086,1782119493000,-500.0,0.00027945,2]
[426025092,1782119493000,-592.34,0.00027945,2]
[426025094,1782119493000,-500.0,0.00027945,2]
[426025098,1782119493000,-500.0,0.00027945,2]
[426025096,1782119493000,-500.0,0.00027945,2]
[426025093,1782119493000,-500.0,0.00027945,2]
[426025095,1782119493000,-500.0,0.00027945,2]
[426025090,1782119493000,-500.0,0.00027945,2]
[426025091,1782119493000,-500.0,0.00027945,2]
[426025088,1782119493000,-503.45991289,0.00027945,2]
[426025087,1782119493000,-500.0,0.00027945,2]
[426025089,1782119493000,-500.0,0.00027945,2]
[426025150,1782119494000,-500.0,0.00027945,2]
[426025149,1782119494000,-500.0,0.00027945,2]
[426025152,1782119494000,-745.56,0.00027945,2]
[426025154,1782119494000,-500.0,0.00027945,2]
[426025153,1782119494000,-1001.58,0.00027945,2]
[426025155,1782119494000,-500.0,0.00027945,2]
[426025163,1782119494000,-500.0,0.00027945,2]
[426025159,1782119494000,-1335.55,0.00027945,2]
[426025164,1782119494000,-500.0,0.00027945,2]
[426025158,1782119494000,-748.95,0.00027945,2]
[426025161,1782119494000,-500.0,0.00027945,2]
[426025165,1782119494000,-500.0,0.00027945,2]
[426025157,1782119494000,-554.57,0.00027945,2]
[426025162,1782119494000,-500.0,0.00027945,2]
[426025160,1782119494000,-561.61036098,0.00027945,2]
[426025166,1782119494000,-500.0,0.00027945,2]
[426025148,1782119494000,-500.0,0.00027945,2]
[426025167,1782119494000,-500.0,0.00027945,2]
[426025156,1782119494000,-500.0,0.00027945,2]
[426025151,1782119494000,-500.0,0.00027945,2]
[426025142,1782119494000,-916.73,0.00027945,2]
[426025147,1782119494000,-500.0,0.00027945,2]
[426025169,1782119494000,-500.0,0.00027945,2]
[426025131,1782119494000,-1224.66,0.00027945,2]
[426025130,1782119494000,-500.0,0.00027945,2]
[426025129,1782119494000,-500.0,0.00027945,2]
[426025128,1782119494000,-670.29,0.00027945,2]
[426025132,1782119494000,-500.0,0.00027945,2]
[426025135,1782119494000,-500.0,0.00027945,2]
[426025134,1782119494000,-500.0,0.00027945,2]
[426025146,1782119494000,-500.0,0.00027945,2]
[426025141,1782119494000,-500.0,0.00027945,2]
[426025136,1782119494000,-500.0,0.00027945,2]
[426025138,1782119494000,-500.0,0.00027945,2]
[426025133,1782119494000,-500.0,0.00027945,2]
[426025139,1782119494000,-500.0,0.00027945,2]
[426025143,1782119494000,-500.0,0.00027945,2]
[426025140,1782119494000,-500.0,0.00027945,2]
[426025145,1782119494000,-500.0,0.00027945,2]
[426025144,1782119494000,-500.0,0.00027945,2]
[426025137,1782119494000,-676.49,0.00027945,2]
[426025168,1782119494000,-500.0,0.00027945,2]
[426025171,1782119494000,-542.8,0.00027945,2]
[426025201,1782119494000,-500.0,0.00027945,2]
[426025189,1782119494000,-823.84,0.00027945,2]
[426025197,1782119494000,-648.39559646,0.00027945,2]
[426025198,1782119494000,-873.0,0.00027945,2]
[426025195,1782119494000,-500.0,0.00027945,2]
[426025200,1782119494000,-500.0,0.00027945,2]
[426025202,1782119494000,-500.0,0.00027945,2]
[426025203,1782119494000,-500.0,0.00027945,2]
[426025205,1782119494000,-500.0,0.00027945,2]
[426025206,1782119494000,-500.0,0.00027945,2]
[426025207,1782119494000,-534.9,0.00027945,2]
[426025204,1782119494000,-880.48,0.00027945,2]
[426025209,1782119494000,-539.1,0.00027945,2]
[426025208,1782119494000,-500.0,0.00027945,2]
[426025214,1782119494000,-500.0,0.00027945,2]
[426025213,1782119494000,-500.0,0.00027945,2]
[426025210,1782119494000,-500.0,0.00027945,2]
[426025211,1782119494000,-500.0,0.00027945,2]
[426025212,1782119494000,-500.0,0.00027945,2]
[426025170,1782119494000,-782.92,0.00027945,2]
[426025193,1782119494000,-500.0,0.00027945,2]
[426025191,1782119494000,-500.0,0.00027945,2]
[426025199,1782119494000,-500.0,0.00027945,2]
[426025196,1782119494000,-500.0,0.00027945,2]
[426025173,1782119494000,-500.0,0.00027945,2]
[426025176,1782119494000,-500.0,0.00027945,2]
[426025172,1782119494000,-502.65637813,0.00027945,2]
[426025174,1782119494000,-643.36,0.00027945,2]
[426025175,1782119494000,-500.0,0.00027945,2]
[426025190,1782119494000,-500.0,0.00027945,2]
[426025177,1782119494000,-500.0,0.00027945,2]
[426025180,1782119494000,-178.97688237,0.00027945,2]
[426025179,1782119494000,-500.0,0.00027945,2]
[426025183,1782119494000,-834.63,0.00027945,2]
[426025178,1782119494000,-500.0,0.00027945,2]
[426025181,1782119494000,-656.6,0.00027945,2]
[426025185,1782119494000,-500.0,0.00027945,2]
[426025182,1782119494000,-795.59,0.00027945,2]
[426025184,1782119494000,-500.0,0.00027945,2]
[426025187,1782119494000,-500.0,0.00027945,2]
[426025188,1782119494000,-500.0,0.00027945,2]
[426025194,1782119494000,-500.0,0.00027945,2]
[426025186,1782119494000,-500.0,0.00027945,2]
[426025192,1782119494000,-500.0,0.00027945,2]
[426025247,1782119495000,-500.0,0.00027945,2]
[426025255,1782119495000,-500.0,0.00027945,2]
[426025252,1782119495000,-500.0,0.00027945,2]
[426025253,1782119495000,-305.59612287,0.00027945,2]
[426025254,1782119495000,-500.0,0.00027945,2]
[426025248,1782119495000,-3901.79,0.00027945,2]
[426025246,1782119495000,-500.0,0.00027945,2]
[426025243,1782119495000,-670.71,0.00027945,2]
[426025249,1782119495000,-698.68,0.00027945,2]
[426025250,1782119495000,-500.0,0.00027945,2]
[426025263,1782119495000,-1047.27,0.00027945,2]
[426025244,1782119495000,-500.0,0.00027945,2]
[426025256,1782119495000,-1214.24,0.00027945,2]
[426025274,1782119495000,-772.7,0.00027945,2]
[426025262,1782119495000,-500.0,0.00027945,2]
[426025259,1782119495000,-500.0,0.00027945,2]
[426025258,1782119495000,-500.0,0.00027945,2]
[426025261,1782119495000,-548.26917913,0.00027945,2]
[426025265,1782119495000,-500.0,0.00027945,2]
[426025264,1782119495000,-978.97,0.00027945,2]
[426025275,1782119495000,-500.0,0.00027945,2]
[426025268,1782119495000,-629.19,0.00027945,2]
[426025266,1782119495000,-500.0,0.00027945,2]
[426025267,1782119495000,-680.19,0.00027945,2]
[426025272,1782119495000,-500.0,0.00027945,2]
[426025245,1782119495000,-500.0,0.00027945,2]
[426025257,1782119495000,-1327.43,0.00027945,2]
[426025242,1782119495000,-500.0,0.00027945,2]
[426025223,1782119495000,-500.0,0.00027945,2]
[426025251,1782119495000,-582.93,0.00027945,2]
[426025218,1782119495000,-500.0,0.00027945,2]
[426025216,1782119495000,-500.0,0.00027945,2]
[426025217,1782119495000,-411.20375607,0.00027945,2]
[426025215,1782119495000,-500.0,0.00027945,2]
[426025220,1782119495000,-500.0,0.00027945,2]
[426025219,1782119495000,-500.0,0.00027945,2]
[426025222,1782119495000,-607.9,0.00027945,2]
[426025225,1782119495000,-500.0,0.00027945,2]
[426025221,1782119495000,-500.0,0.00027945,2]
[426025226,1782119495000,-500.0,0.00027945,2]
[426025229,1782119495000,-660.72,0.00027945,2]
[426025228,1782119495000,-814.96,0.00027945,2]
[426025227,1782119495000,-500.0,0.00027945,2]
[426025224,1782119495000,-621.2,0.00027945,2]
[426025232,1782119495000,-500.0,0.00027945,2]
[426025231,1782119495000,-500.0,0.00027945,2]
[426025230,1782119495000,-500.0,0.00027945,2]
[426025233,1782119495000,-977.47,0.00027945,2]
[426025237,1782119495000,-500.0,0.00027945,2]
[426025238,1782119495000,-500.0,0.00027945,2]
[426025234,1782119495000,-500.0,0.00027945,2]
[426025239,1782119495000,-1051.83,0.00027945,2]
[426025236,1782119495000,-500.0,0.00027945,2]
[426025235,1782119495000,-1389.52,0.00027945,2]
[426025241,1782119495000,-923.44,0.00027945,2]
[426025240,1782119495000,-506.71,0.00027945,2]
[426025270,1782119495000,-500.0,0.00027945,2]
[426025260,1782119495000,-500.0,0.00027945,2]
[426025269,1782119495000,-500.0,0.00027945,2]
[426025307,1782119495000,-500.0,0.00027945,2]
[426025304,1782119495000,-518.92,0.00027945,2]
[426025302,1782119495000,-500.0,0.00027945,2]
[426025306,1782119495000,-500.0,0.00027945,2]
[426025309,1782119495000,-582.63,0.00027945,2]
[426025308,1782119495000,-500.0,0.00027945,2]
[426025310,1782119495000,-500.0,0.00027945,2]
[426025312,1782119495000,-500.0,0.00027945,2]
[426025311,1782119495000,-806.18,0.00027945,2]
[426025314,1782119495000,-500.0,0.00027945,2]
[426025313,1782119495000,-500.0,0.00027945,2]
[426025315,1782119495000,-1524.68,0.00027945,2]
[426025303,1782119495000,-500.0,0.00027945,2]
[426025323,1782119495000,-702.57,0.00027945,2]
[426025316,1782119495000,-500.0,0.00027945,2]
[426025319,1782119495000,-500.0,0.00027945,2]
[426025322,1782119495000,-500.0,0.00027945,2]
[426025318,1782119495000,-1515.43,0.00027945,2]
[426025321,1782119495000,-1305.26,0.00027945,2]
[426025320,1782119495000,-500.0,0.00027945,2]
[426025325,1782119495000,-424.49359373,0.00027945,2]
[426025329,1782119495000,-400.34823171,0.00027945,2]
[426025327,1782119495000,-532.44,0.00027945,2]
[426025328,1782119495000,-787.4,0.00027945,2]
[426025330,1782119495000,-500.0,0.00027945,2]
[426025271,1782119495000,-500.0,0.00027945,2]
[426025324,1782119495000,-500.0,0.00027945,2]
[426025305,1782119495000,-894.46,0.00027945,2]
[426025317,1782119495000,-4836.67,0.00027945,2]
[426025296,1782119495000,-500.0,0.00027945,2]
[426025273,1782119495000,-3541.58,0.00027945,2]
[426025301,1782119495000,-500.0,0.00027945,2]
[426025276,1782119495000,-807.41,0.00027945,2]
[426025279,1782119495000,-1029.91,0.00027945,2]
[426025278,1782119495000,-534.38165132,0.00027945,2]
[426025277,1782119495000,-1477.52,0.00027945,2]
[426025280,1782119495000,-500.0,0.00027945,2]
[426025281,1782119495000,-500.0,0.00027945,2]
[426025283,1782119495000,-500.0,0.00027945,2]
[426025326,1782119495000,-500.0,0.00027945,2]
[426025286,1782119495000,-500.0,0.00027945,2]
[426025282,1782119495000,-500.0,0.00027945,2]
[426025284,1782119495000,-500.0,0.00027945,2]
[426025287,1782119495000,-500.0,0.00027945,2]
[426025289,1782119495000,-500.0,0.00027945,2]
[426025292,1782119495000,-500.0,0.00027945,2]
[426025285,1782119495000,-507.04,0.00027945,2]
[426025297,1782119495000,-500.0,0.00027945,2]
[426025294,1782119495000,-551.69,0.00027945,2]
[426025293,1782119495000,-500.0,0.00027945,2]
[426025298,1782119495000,-500.0,0.00027945,2]
[426025295,1782119495000,-500.0,0.00027945,2]
[426025291,1782119495000,-500.0,0.00027945,2]
[426025300,1782119495000,-814.11,0.00027945,2]
[426025299,1782119495000,-500.0,0.00027945,2]
[426025288,1782119495000,-500.0,0.00027945,2]
[426025290,1782119495000,-7269.9,0.00027945,2]
[426025369,1782119496000,-500.0,0.00027945,2]
[426025380,1782119496000,-7294.75,0.00027945,2]
[426025368,1782119496000,-500.0,0.00027945,2]
[426025365,1782119496000,-5008.57,0.00027945,2]
[426025367,1782119496000,-500.0,0.00027945,2]
[426025363,1782119496000,-563.24,0.00027945,2]
[426025364,1782119496000,-763.17,0.00027945,2]
[426025362,1782119496000,-211.90385583,0.00027945,2]
[426025361,1782119496000,-357.26631943,0.00027945,2]
[426025370,1782119496000,-931.05,0.00027945,2]
[426025366,1782119496000,-500.0,0.00027945,2]
[426025371,1782119496000,-849.65,0.00027945,2]
[426025387,1782119496000,-500.0,0.00027945,2]
[426025375,1782119496000,-500.0,0.00027945,2]
[426025373,1782119496000,-500.0,0.00027945,2]
[426025372,1782119496000,-500.0,0.00027945,2]
[426025374,1782119496000,-500.0,0.00027945,2]
[426025377,1782119496000,-388.86573925,0.00027945,2]
[426025376,1782119496000,-500.0,0.00027945,2]
[426025379,1782119496000,-500.0,0.00027945,2]
[426025381,1782119496000,-500.0,0.00027945,2]
[426025382,1782119496000,-500.0,0.00027945,2]
[426025383,1782119496000,-500.0,0.00027945,2]
[426025384,1782119496000,-500.0,0.00027945,2]
[426025359,1782119496000,-589.47,0.00027945,2]
[426025378,1782119496000,-500.0,0.00027945,2]
[426025356,1782119496000,-500.0,0.00027945,2]
[426025331,1782119496000,-500.0,0.00027945,2]
[426025355,1782119496000,-495.16064101,0.00027945,2]
[426025391,1782119496000,-500.0,0.00027945,2]
[426025336,1782119496000,-2000.0,0.00027945,2]
[426025335,1782119496000,-500.0,0.00027945,2]
[426025334,1782119496000,-500.0,0.00027945,2]
[426025333,1782119496000,-500.0,0.00027945,2]
[426025332,1782119496000,-500.0,0.00027945,2]
[426025338,1782119496000,-699.81,0.00027945,2]
[426025348,1782119496000,-500.0,0.00027945,2]
[426025340,1782119496000,-500.0,0.00027945,2]
[426025341,1782119496000,-926.72,0.00027945,2]
[426025337,1782119496000,-739.36,0.00027945,2]
[426025339,1782119496000,-500.0,0.00027945,2]
[426025357,1782119496000,-500.0,0.00027945,2]
[426025345,1782119496000,-500.0,0.00027945,2]
[426025342,1782119496000,-8333.7,0.00027945,2]
[426025344,1782119496000,-885.95,0.00027945,2]
[426025346,1782119496000,-1487.43,0.00027945,2]
[426025347,1782119496000,-3619.69,0.00027945,2]
[426025349,1782119496000,-628.48706523,0.00027945,2]
[426025353,1782119496000,-500.0,0.00027945,2]
[426025352,1782119496000,-549.41671755,0.00027945,2]
[426025350,1782119496000,-500.0,0.00027945,2]
[426025360,1782119496000,-2134.45,0.00027945,2]
[426025351,1782119496000,-683.61,0.00027945,2]
[426025354,1782119496000,-11954.4,0.00027945,2]
[426025358,1782119496000,-500.0,0.00027945,2]
[426025343,1782119496000,-1036.4,0.00027945,2]
[426025388,1782119496000,-623.15,0.00027945,2]
[426025389,1782119496000,-502.29494488,0.00027945,2]
[426025390,1782119496000,-470.34013337,0.00027945,2]
[426025430,1782119496000,-500.0,0.00027945,2]
[426025421,1782119496000,-500.0,0.00027945,2]
[426025429,1782119496000,-636.72,0.00027945,2]
[426025427,1782119496000,-500.0,0.00027945,2]
[426025422,1782119496000,-500.0,0.00027945,2]
[426025423,1782119496000,-500.0,0.00027945,2]
[426025424,1782119496000,-500.0,0.00027945,2]
[426025428,1782119496000,-500.0,0.00027945,2]
[426025426,1782119496000,-642.24951176,0.00027945,2]
[426025425,1782119496000,-500.0,0.00027945,2]
[426025431,1782119496000,-500.0,0.00027945,2]
[426025441,1782119496000,-500.0,0.00027945,2]
[426025433,1782119496000,-500.0,0.00027945,2]
[426025434,1782119496000,-500.0,0.00027945,2]
[426025435,1782119496000,-547.2859458,0.00027945,2]
[426025440,1782119496000,-500.0,0.00027945,2]
[426025432,1782119496000,-500.0,0.00027945,2]
[426025437,1782119496000,-500.0,0.00027945,2]
[426025436,1782119496000,-500.0,0.00027945,2]
[426025438,1782119496000,-729.11,0.00027945,2]
[426025439,1782119496000,-504.98574745,0.00027945,2]
[426025392,1782119496000,-500.0,0.00027945,2]
[426025442,1782119496000,-500.0,0.00027945,2]
[426025445,1782119496000,-648.2201211,0.00027945,2]
[426025444,1782119496000,-500.0,0.00027945,2]
[426025420,1782119496000,-500.0,0.00027945,2]
[426025419,1782119496000,-5765.88,0.00027945,2]
[426025443,1782119496000,-500.0,0.00027945,2]
[426025417,1782119496000,-500.0,0.00027945,2]
[426025418,1782119496000,-500.0,0.00027945,2]
[426025393,1782119496000,-500.0,0.00027945,2]
[426025386,1782119496000,-4947.53,0.00027945,2]
[426025395,1782119496000,-500.0,0.00027945,2]
[426025405,1782119496000,-500.0,0.00027945,2]
[426025406,1782119496000,-500.0,0.00027945,2]
[426025394,1782119496000,-628.49,0.00027945,2]
[426025397,1782119496000,-1476.94,0.00027945,2]
[426025398,1782119496000,-6210.96,0.00027945,2]
[426025396,1782119496000,-500.0,0.00027945,2]
[426025404,1782119496000,-586.54642494,0.00027945,2]
[426025401,1782119496000,-695.9,0.00027945,2]
[426025399,1782119496000,-500.0,0.00027945,2]
[426025385,1782119496000,-569.65,0.00027945,2]
[426025400,1782119496000,-500.0,0.00027945,2]
[426025402,1782119496000,-500.0,0.00027945,2]
[426025414,1782119496000,-1419.64,0.00027945,2]
[426025413,1782119496000,-1345.02,0.00027945,2]
[426025408,1782119496000,-500.0,0.00027945,2]
[426025410,1782119496000,-500.0,0.00027945,2]
[426025415,1782119496000,-500.0,0.00027945,2]
[426025409,1782119496000,-500.0,0.00027945,2]
[426025411,1782119496000,-347.14527934,0.00027945,2]
[426025407,1782119496000,-3112.0,0.00027945,2]
[426025403,1782119496000,-500.0,0.00027945,2]
[426025412,1782119496000,-500.0,0.00027945,2]
[426025416,1782119496000,-500.0,0.00027945,2]
[426025473,1782119497000,-500.0,0.00027945,2]
[426025481,1782119497000,-500.0,0.00027945,2]
[426025474,1782119497000,-500.0,0.00027945,2]
[426025471,1782119497000,-500.0,0.00027945,2]
[426025475,1782119497000,-500.0,0.00027945,2]
[426025477,1782119497000,-514.35566012,0.00027945,2]
[426025479,1782119497000,-4216.49,0.00027945,2]
[426025478,1782119497000,-5391.54,0.00027945,2]
[426025476,1782119497000,-5236.5,0.00027945,2]
[426025480,1782119497000,-500.0,0.00027945,2]
[426025486,1782119497000,-500.0,0.00027945,2]
[426025484,1782119497000,-8237.49,0.00027945,2]
[426025483,1782119497000,-500.0,0.00027945,2]
[426025492,1782119497000,-500.0,0.00027945,2]
[426025491,1782119497000,-747.71,0.00027945,2]
[426025489,1782119497000,-1020.09,0.00027945,2]
[426025487,1782119497000,-500.0,0.00027945,2]
[426025490,1782119497000,-348.27303874,0.00027945,2]
[426025485,1782119497000,-500.0,0.00027945,2]
[426025488,1782119497000,-500.0,0.00027945,2]
[426025472,1782119497000,-4736.1,0.00027945,2]
[426025482,1782119497000,-4874.94,0.00027945,2]
[426025470,1782119497000,-500.0,0.00027945,2]
[426025459,1782119497000,-500.0,0.00027945,2]
[426025466,1782119497000,-924.56,0.00027945,2]
[426025493,1782119497000,-1119.42,0.00027945,2]
[426025448,1782119497000,-4838.88,0.00027945,2]
[426025447,1782119497000,-500.0,0.00027945,2]
[426025446,1782119497000,-500.0,0.00027945,2]
[426025451,1782119497000,-4048.28,0.00027945,2]
[426025450,1782119497000,-500.0,0.00027945,2]
[426025452,1782119497000,-500.0,0.00027945,2]
[426025449,1782119497000,-500.0,0.00027945,2]
[426025453,1782119497000,-500.0,0.00027945,2]
[426025454,1782119497000,-305.92666741,0.00027945,2]
[426025468,1782119497000,-500.0,0.00027945,2]
[426025458,1782119497000,-500.0,0.00027945,2]
[426025456,1782119497000,-1021.59,0.00027945,2]
[426025457,1782119497000,-500.0,0.00027945,2]
[426025461,1782119497000,-8420.27,0.00027945,2]
[426025460,1782119497000,-500.0,0.00027945,2]
[426025462,1782119497000,-157.48682897,0.00027945,2]
[426025463,1782119497000,-2905.47,0.00027945,2]
[426025464,1782119497000,-500.0,0.00027945,2]
[426025465,1782119497000,-273.05571897,0.00027945,2]
[426025467,1782119497000,-507.84264071,0.00027945,2]
[426025469,1782119497000,-7830.66,0.00027945,2]
[426025455,1782119497000,-500.0,0.00027945,2]
[426025494,1782119497000,-500.0,0.00027945,2]
[426025524,1782119497000,-500.0,0.00027945,2]
[426025500,1782119497000,-500.0,0.00027945,2]
[426025522,1782119497000,-500.0,0.00027945,2]
[426025520,1782119497000,-500.0,0.00027945,2]
[426025544,1782119497000,-500.0,0.00027945,2]
[426025525,1782119497000,-1005.54,0.00027945,2]
[426025528,1782119497000,-790.5,0.00027945,2]
[426025539,1782119497000,-1346.59,0.00027945,2]
[426025538,1782119497000,-500.0,0.00027945,2]
[426025527,1782119497000,-1000.0,0.00027945,2]
[426025540,1782119497000,-371.31613959,0.00027945,2]
[426025530,1782119497000,-1333.85,0.00027945,2]